Cogmind - Beta 16 --- EXPLORER MODE // 2025.12.04 @ 14:51:52 Player: K.K.Y. Result: Destroyed by JT-3PT(R) with Subdweller Laser Performance ------------- Evolutions (0) 0 Regions Visited (3) 600 Robots Destroyed (51) 255 Value Destroyed (1000) 1000 Prototype IDs (12) 240 Alien Tech Used (0) 0 Bonus (30) 30 TOTAL SCORE: 2125 Bonus ------- Follower Combat Kills 30 Cogmind --------- Core Integrity 0/250 Matter 300/300 Energy 91/100 System Corruption 3% Temperature Cool (9) Movement Walking (130) Location -10/Subcaves Parts ------- > --- POWER (1+1) ------ (None) > --- PROPULSION (2) --- Cargo Legs > --- UTILITY (3+2) ---- Terrain Scan Processor Terrain Scan Processor > --- WEAPON (2) ------- Powered Cannon > --- INVENTORY (5) ---- Light Treads Light Treads Barrage Gun Mining Laser Plasma Cutter Peak State ------------ > --- POWER ------------ (None) > --- PROPULSION ------- Cargo Legs > --- UTILITY ---------- Improved Terrain Scanner Terrain Scan Processor Terrain Scan Processor > --- WEAPON ----------- Powered Cannon > --- INVENTORY -------- Light Treads Light Treads Barrage Gun Mining Laser Plasma Cutter [Rating: 37] Favorites ----------- Power Ion Engine Engine Ion Engine Propulsion Aluminum Leg Treads Light Treads Leg Aluminum Leg Wheel Wheel Hover Unit Hover Unit Utility Terrain Scan Processor Device Improved Terrain Scanner Processor Terrain Scan Processor Weapon Maul Energy Gun EM Shotgun Energy Cannon Powered Cannon Ballistic Gun Heavy Battle Rifle Impact Weapon Maul Build | -11 -10 -10 -10 ------- Run | Yrd Mat Min Sub Slots Evolved 1 | . 1 . . Power . | . . . . Propulsion . | . . . . Utility 1 | . 1 . . Weapon . | . . . . Parts Attached 28 | 7 12 4 5 Power 3 | 1 1 . 1 Engine 3 | 1 1 . 1 Core . | . . . . Reactor . | . . . . Propulsion 11 | 4 4 . 3 Treads 2 | 2 . . . Leg 5 | . 2 . 3 Wheel 2 | 2 . . . Hover 2 | . 2 . . Flight . | . . . . Utility 6 | . 5 1 . Device 3 | . 2 1 . Storage . | . . . . Processor 3 | . 3 . . Hackware . | . . . . Protection . | . . . . Artifact . | . . . . Weapon 8 | 2 2 3 1 Energy Gun 4 | 1 2 1 . Energy Cannon 1 | . . . 1 Ballistic Gun 2 | 1 . 1 . Ballistic Cannon . | . . . . Launcher . | . . . . Special Weapon . | . . . . Impact Weapon 1 | . . 1 . Slashing Weapon . | . . . . Piercing Weapon . | . . . . Special Melee Weapon . | . . . . Unidentified Prototypes 1 | . . . 1 Parts Lost 8 | . 1 2 5 Power 2 | . . . 2 Propulsion 2 | . 1 . 1 Utility 1 | . . . 1 Weapon 3 | . . 2 1 Highest Loss Streak 2 | . 1 2 1 To Critical Strikes . | . . . . Average Backups 4 | 2 4 4 4 Power . | . . . . Propulsion 1 | 1 1 2 2 Utility . | . . . . Weapon 1 | . 1 1 1 Tool/Special . | . . . . Unused Backups 6 | . 1 1 4 Power . | . . . . Propulsion 1 | . . 1 . Utility 1 | . 1 . . Weapon 3 | . . . 3 Tool/Special 1 | . . . 1 Average Slot Usage (%) 81 | . 78 99 73 Engine 9 | . 12 12 6 Leg 17 | . 10 25 15 Hover 2 | . 10 . . Device 10 | . 7 12 10 Processor 20 | . 9 25 22 Energy Gun 6 | . 20 5 . Ballistic Gun 6 | . 4 8 6 Impact Weapon 7 | . . 10 10 Peak Build Rating 37 | 5 15 16 37 Average Rating 16 | 3 9 15 22 On Entrance 8 | . 5 14 16 Avg Prop Armor Cover (%) . | . . . . Naked Turns . | . . . . Heaviest Build 13 | 9 12 13 13 Greatest Support 55 | 40 40 20 55 Greatest Overweight (x) 3 | 2 3 . 1 Average Overweight (x) . | . . . . Largest Inventory Capacity 5 | 5 5 5 5 Average Capacity 5 | 5 5 5 5 Most Carried 5 | 5 5 5 5 Average Carried 4 | 2 4 4 4 Final Capacity 5 | 5 5 5 5 Final Carried 5 | 4 5 4 5 Class Distribution -------------------- 92% | Hacker-Mutant 7% | Scavenger-Mutant Dominant Class ---------------- Hacker-Mutant | -10/Materials Hacker-Mutant | -10/Mines Hacker-Mutant | -10/Subcaves Resources | -11 -10 -10 -10 ----------- Run | Yrd Mat Min Sub Matter Collected 811 | 291 244 114 162 Remotely . | . . . . Salvage Created 1648 | 106 644 332 566 Parts 93 | 9 44 13 27 Haulers Intercepted 2 | . 2 . . Recyclers Shooed 2 | . 2 . . Parts Field Recycled . | . . . . Retrieved Matter . | . . . . Parts Self-Destructed . | . . . . Prevented . | . . . . Parts Restored . | . . . . Kills | -11 -10 -10 -10 ------- Run | Yrd Mat Min Sub Combat Hostiles Destroyed 26 | . 8 3 15 Melee 4 | . . . 4 Guns 12 | . 8 1 3 Classes Destroyed 10 | 2 6 . 2 Worker 5 | . 2 3 . Builder 5 | . 4 1 . Tunneler 7 | 4 1 2 . Hauler 2 | . 2 . . Recycler 4 | 1 2 1 . Watcher 2 | . 2 . . Swarmer 7 | . 6 . 1 Grunt 6 | . 2 3 1 Sentry 1 | . . . 1 Subdweller 12 | . . . 12 Best Kill Streak 6 | 4 6 5 4 Combat Bots Only 4 | . 2 2 4 Max Kills in Single Turn 2 | 1 2 2 1 Gunslinging . | . . . . Exploded . | . . . . Melee 1 | . . . 1 Uniques/NPCs Destroyed . | . . . . Combat | -11 -10 -10 -10 -------- Run | Yrd Mat Min Sub Hostile Shots Fired 144 | . 33 16 95 Missed 42 | . 6 7 29 Hits 102 | . 27 9 66 Projectile 102 | . 27 9 66 AOE 2 | . . . 2 Critical Strikes 4 | . . . 4 Damage Taken 1185 | . 163 96 926 Core 257 | . 21 7 229 Absorbed by Shields . | . . . . Ignored by Resistances 709 | . 113 59 537 Core Remaining (%) 100 | 100 . . . Volleys Fired 101 | 7 45 18 31 Largest 2 | 2 2 2 1 Hottest 90 | 70 90 90 40 Shots Fired 161 | 14 89 27 31 Gun 159 | 14 89 27 29 Cannon 2 | . . . 2 Launcher . | . . . . Special . | . . . . Kinetic 69 | 7 32 1 29 Thermal 49 | 7 34 6 2 Explosive . | . . . . Electromagnetic 43 | . 23 20 . Robot Hit Streak 23 | 9 23 12 23 Robot Miss Streak 2 | 1 2 1 1 Penetration Max . | . . . . Secondary Targets . | . . . . Shots Hit Robots 164 | 9 73 28 54 Core Hits 54 | 6 30 10 8 Critical Kills 2 | . . . 2 Critical Parts Destroyed 4 | . . 1 3 Critical Strikes 8 | 1 1 1 5 Burn 2 | 1 1 . . Smash 6 | . . 1 5 Melee Attacks 89 | . . 5 84 Impact 89 | . . 5 84 Slashing . | . . . . Piercing . | . . . . Sneak Attacks 6 | . . 5 1 Combat Hostiles . | . . . . Follow-up Attacks . | . . . . Damage Inflicted 3210 | 121 1017 798 1274 Guns 1841 | 121 1017 350 353 Cannons 57 | . . . 57 Explosions . | . . . . Melee 1309 | . . 445 864 Ramming 3 | . . 3 . Kinetic 758 | 46 341 18 353 Thermal 564 | 75 377 55 57 Explosive . | . . . . Electromagnetic 576 | . 299 277 . Impact 1309 | . . 445 864 Slashing . | . . . . Piercing . | . . . . Highest Corruption 3 | . 3 3 3 Average Corruption 2 | . 2 3 3 Corruption Purged . | . . . . Corruption Blocked . | . . . . Effects 53 | . 14 14 25 Message Errors 11 | . 2 3 6 Matter Fused 14 | . 2 6 6 Heat Flow Errors 4 | . 1 . 3 Energy Discharges 13 | . 4 2 7 Parts Fused 1 | . . 1 . Data Loss (minor) 3 | . 1 . 2 Data Loss (major) 4 | . 1 2 1 Misfires 1 | . 1 . . Weapon Failures 2 | . 2 . . Overload Shots . | . . . . Overflow Damage 558 | . . 332 226 Projectiles 22 | . . 22 . Explosions . | . . . . Melee 536 | . . 310 226 Knockbacks 11 | . . 2 9 Impact 10 | . . 1 9 Kinetic . | . . . . Secondary 1 | . . 1 . Self-Inflicted Damage 19 | . . 19 . Shots 1 | . . 1 . Rammed . | . . . . Targets Rammed 1 | . . 1 . Kicked 1 | . . 1 . Crushed . | . . . . Highest Temperature 239 | 38 239 138 229 Average Temperature 50 | 13 47 60 90 Received Heat Transfer 636 | . 42 69 525 Siege Activations . | . . . . Martial Activations . | . . . . Shielding Activations . | . . . . Robots Disrupted . | . . . . Combat Hostiles . | . . . . Robots Corrupted 11 | . . 4 7 Combat Hostiles 9 | . . 2 7 Parts Fried 14 | . 1 5 8 Impact Corruptions 17 | . . 9 8 Robots Melted . | . . . . Combat Hostiles . | . . . . Parts Melted 4 | 2 1 . 1 Heat Transferred 1605 | 296 1184 125 . Parts Sabotaged . | . . . . Parts Stolen . | . . . . Parts Stripped . | . . . . Power Chain Reactions 2 | . 1 1 . Alert | -11 -10 -10 -10 ------- Run | Yrd Mat Min Sub Maximum Alert Level . | . . . . Low Security (%) 100 | 100 100 100 . Level 1 . | . . . . Level 2 . | . . . . Level 3 . | . . . . Level 4 . | . . . . Level 5 . | . . . . High Security . | . . . . Max Security . | . . . . Peak Influence 104 | 10 104 30 . Initial . | . . . . Average 10 | 1 22 2 . Influence Increases 509 | 25 283 121 80 Destroy 0b10 Robot/C 280 | . 160 60 60 Destroy 0b10 Robot/NC 125 | 25 65 35 . Destroy Leader 88 | . 48 20 20 Successful Hack 3 | . 3 . . Disable Machine 4 | . 4 . . Destroy Structure 9 | . 3 6 . Influence Decreases 509 | 25 283 121 80 Time Decay 484 | 25 273 106 80 Lost Part 25 | . 10 15 . Squads Dispatched . | . . . . Investigation . | . . . . Extermination . | . . . . Reinforcement . | . . . . Assault . | . . . . Garrison . | . . . . Intercept . | . . . . Searches Triggered . | . . . . Construction Impeded . | . . . . Haulers Reinforced . | . . . . Active Scanning Responses . | . . . . Cargo Convoy Interrupts . | . . . . Stealth | -11 -10 -10 -10 --------- Run | Yrd Mat Min Sub Distress Signals 1 | . 1 . . Communications Jammed . | . . . . Distress Signals . | . . . . Times Spotted 34 | . 11 4 19 Peak Tracking Total 4 | . 3 2 4 Tactical Retreats 1 | . . . 1 Traps | -11 -10 -10 -10 ------- Run | Yrd Mat Min Sub Traps Triggered 7 | . 6 . 1 Indirectly . | . . . . Trap Hack Attempts . | . . . . Triggered . | . . . . Disarmed . | . . . . Reprogrammed . | . . . . Reused . | . . . . Traps Extracted . | . . . . Installed . | . . . . Triggered . | . . . . Machines | -11 -10 -10 -10 ---------- Run | Yrd Mat Min Sub Machines Disabled 2 | . 1 . 1 Max in Single Turn 1 | . 1 . 1 Machines Repaired . | . . . . Machines Dismantled . | . . . . Machines Sabotaged . | . . . . Overloaded Fab Kills . | . . . . Hacking | -11 -10 -10 -10 --------- Run | Yrd Mat Min Sub Machines Accessed 6 | . 5 . 1 Terminals 5 | . 5 . . Fabricators . | . . . . Repair Stations . | . . . . Recycling Units . | . . . . Scanalyzers . | . . . . Garrison Access . | . . . . Total Hacks 9 | . 8 . 1 Successful 6 | . 5 . 1 Failed 3 | . 3 . . Catastrophic . | . . . . Database Lockouts . | . . . . Manual 7 | . 7 . . Terminals 8 | . 8 . . Fabricators . | . . . . Repair Stations . | . . . . Recycling Units . | . . . . Scanalyzers . | . . . . Garrison Access . | . . . . Terminal Hacks 2 | . 1 . 1 Robot Analysis 1 | . 1 . . Proto ID Catalog 1 | . . . 1 Fabricator Hacks . | . . . . Repair Station Hacks . | . . . . Recycling Unit Hacks . | . . . . Scanalyzer . | . . . . Garrison Access Hacks . | . . . . Unauthorized Hacks 4 | . 4 . . Terminals 4 | . 4 . . Botnet 4 | . 4 . . Fabricators . | . . . . Repair Stations . | . . . . Recycling Units . | . . . . Scanalyzers . | . . . . Garrison Access . | . . . . Data Cores Recovered . | . . . . Used . | . . . . Hacking Detections 1 | . 1 . . Full Trace Events . | . . . . Feedback Events . | . . . . Feedback Blocked . | . . . . Robot Schematics Acquired . | . . . . Robots Built . | . . . . Authchips . | . . . . Time . | . . . . Total Robot Build Rating . | . . . . Part Schematics Acquired . | . . . . Parts Built . | . . . . Authchips . | . . . . Time . | . . . . Total Part Build Rating . | . . . . Part Studies Acquired . | . . . . Parts Repaired . | . . . . Time . | . . . . Parts Recycled . | . . . . Recycled Matter . | . . . . Retrieved Matter . | . . . . Retrieved Components . | . . . . Parts Scanalyzed . | . . . . Part Schematics Acquired . | . . . . Parts Damaged . | . . . . Bothacking | -11 -10 -10 -10 ------------ Run | Yrd Mat Min Sub Used RIF Installer . | . . . . Robots Hacked . | . . . . Non-combat . | . . . . Combat . | . . . . Robot Hacks Applied . | . . . . Relay Couplers Released . | . . . . Fabnet Peak Effective % . | . . . . Robots Rewired . | . . . . Allies Hacked . | . . . . Hacks Repelled . | . . . . Allies | -11 -10 -10 -10 -------- Run | Yrd Mat Min Sub Total Allies 3 | . . 3 . Largest Group 3 | . . 3 3 Highest-Rated Group 40 | . . 40 40 Highest-Rated Ally 16 | . . 16 16 Total Orders . | . . . . Ally Attacks 17 | . . . 17 Total Damage 55 | . . . 55 Kills 1 | . . . 1 Allies Corrupted . | . . . . Allies Melted . | . . . . Intel | -11 -10 -10 -10 ------- Run | Yrd Mat Min Sub Active Infowar (turns) 2927 | . 458 896 1573 Terrain 2927 | . 458 896 1573 Robot Analysis Total 1 | . 1 . . Derelict Logs Recovered 1 | . . . 1 Drone Launches . | . . . . Drone Recoveries . | . . . . Exploration | -11 -10 -10 -10 ------------- Run | Yrd Mat Min Sub Turns Passed 3349 | 112 725 896 1616 Spaces Moved 2214 | 68 609 670 867 Core 42 | 34 8 . . Treads 32 | 11 21 . . Legs 1791 | . 254 670 867 Wheels 57 | 23 34 . . Hover 292 | . 292 . . Flight . | . . . . Fastest Speed 50 | 50 56 120 120 Average Speed 117 | 97 91 120 136 Slowest Speed 200 | 160 200 120 190 Overloaded Moves . | . . . . Propulsion Burnouts . | . . . . Robots Hopped . | . . . . Potential Cave-ins . | . . . . Cave-ins Triggered . | . . . . Exploration Rate (%) 60 | 5 85 99 51 Regions Visited 3 Branch Regions 2 Pre-discovered Areas 1 | . . 1 . Known Exits Taken 3 | 1 1 1 . Unknown Exits Taken . | . . . . Scrap Searched 8 | . . 1 7 Spaces Dug 5 | . . . 5 Terrain Destroyed 14 | . 2 6 6 Melee 5 | . . . 5 Projectile 1 | . . . 1 AOE 8 | . 2 6 . Terrain Rammed . | . . . . Walls Destroyed . | . . . . Machines Disabled . | . . . . Actions | -11 -10 -10 -10 --------- Run | Yrd Mat Min Sub Total 2616 | 100 690 725 1101 Wait 137 | 8 . 21 108 Move 2211 | 67 608 669 867 Hop . | . . . . Pick Up 23 | 9 8 4 2 Fast Attach 11 | . 7 . 4 Attach 14 | 7 5 2 . Detach 7 | 2 5 . . Swap 8 | . 5 2 1 Drop 14 | . 7 3 4 Fire 101 | 7 45 18 31 Melee 89 | . . 5 84 Ram . | . . . . Kick 1 | . . 1 . Crush . | . . . . Escape Stasis . | . . . . Rewire . | . . . . Trap . | . . . . Miscellaneous . | . . . . Route ------- -11/Scrapyard -10/Materials (discovered 4 exits: *Mat x2 / *Min / Sub) -10/Mines (discovered 3 exits: *Mat x2 / *Sub) -10/Subcaves (discovered 3 exits: *Mat x2 / [*Scr]) History --------- Turn | Location | Event 3 | -11/Scrapyard | Identified exit to Materials 3 | -11/Scrapyard | Discovered exit to Materials (range 15) 113 | -11/Scrapyard | Entered Materials 113 | -10/Materials | Evolved 1 slot: Utility x1 299 | -10/Materials | Identified exit to Materials 299 | -10/Materials | Discovered exit to Materials (range 16) 308 | -10/Materials | Build established: Hacker-Mutant 447 | -10/Materials | Discovered exit to Materials (range 11) 757 | -10/Materials | Identified exit to Mines 757 | -10/Materials | Discovered exit to Mines (range 16) 793 | -10/Materials | Identified exit to Subcaves 793 | -10/Materials | Discovered exit to Subcaves (range 10) 838 | -10/Materials | Entered Mines 1008 | -10/Mines | Found a hidden stash of uninstalled traps 1077 | -10/Mines | A weapon hastily lodged in a ceiling crevice suddenly fell to the ground 1149 | -10/Mines | Discovered exit to Subcaves (range 11) 1201 | -10/Mines | Discovered exit to Materials (range 13) 1261 | -10/Mines | Assisted by bots powering up and referring to "LRC-V3" 1572 | -10/Mines | Learned location of Storage (-8) 1573 | -10/Mines | Discovered exit to Materials (range 5) 1734 | -10/Mines | Entered Subcaves 1734 | -10/Subcaves | Accompanied by 3 allies 1735 | -10/Subcaves | Approached by a straggling Scientist 1766 | -10/Subcaves | Scientist uncovered a shortcut to Scraptown 1942 | -10/Subcaves | Identified exit to Materials 1942 | -10/Subcaves | Discovered exit to Materials (range 15) 2145 | -10/Subcaves | Discovered exit to Materials (range 13) 2528 | -10/Subcaves | A Subdweller sparked back to life 2528 | -10/Subcaves | A Subdweller sparked back to life 2528 | -10/Subcaves | A Subdweller sparked back to life 2548 | -10/Subcaves | Core integrity fell below 50% 2559 | -10/Subcaves | Found Prototype Leg 2559 | -10/Subcaves | Identified Cargo Legs 2560 | -10/Subcaves | Attached Cargo Legs, gained temporary slots: Utility x2 2657 | -10/Subcaves | Core integrity fell below 20% 3185 | -10/Subcaves | Learned location of 1 exit from Materials 3201 | -10/Subcaves | Visited 4L-MR0's lab 3216 | -10/Subcaves | Found Powered Cannon 3217 | -10/Subcaves | Attached Powered Cannon, gained temporary slot: Power 3253 | -10/Subcaves | A swath of the cavern ceiling suddenly collapsed 3350 | -10/Subcaves | Destroyed by JT-3PT(R) with Subdweller Laser Last Messages --------------- 03209_ Testing Chamber breached. 03211_ 4L-MR0 mumbles: "Who knows where that last prototype ended up, probably tossed aside somewhere as if it were useless junk..." 03215_ Dropped Maul. 03216_ Acquired Powered Cannon. 03217_ Core temporarily expanded with Power slot. 03237_ M>F, 03330_ JT-3PT(R) affixes Scrap Shield Fragment to Scrap Shield. 03340_ VVGJ686,NGX/T3/PBRH5BLAM9WN